Cogmind - Beta 16 @@@ ROGUE MODE // 2025.11.09 @ 21:29:52 Player: astyreal Result: Destroyed by S-10 Pest with Light Assault Rifle Performance ------------- Evolutions (2) 1000 Regions Visited (4) 800 Robots Destroyed (17) 85 Value Destroyed (445) 445 Prototype IDs (1) 20 Alien Tech Used (0) 0 Bonus (0) 0 TOTAL SCORE: 2350 Bonus ------- None Cogmind --------- Core Integrity 0/550 Matter 300/300 Energy 100/100 System Corruption 0% Temperature Cool (0) Movement Core (50) Location -8/Materials Parts ------- > --- POWER (1) -------- (None) > --- PROPULSION (3) --- (None) > --- UTILITY (5) ------ (None) > --- WEAPON (2) ------- (None) > --- INVENTORY (5) ---- Faulty Improved VTOL Module Improved Sensor Array Seismic Detector Peak State ------------ > --- POWER ------------ Light Nuclear Core > --- PROPULSION ------- Aluminum Leg Aluminum Leg Aluminum Leg > --- UTILITY ---------- Small Storage Unit Improved Sensor Array Improved Terrain Scanner Advanced Targeting Computer Insulated Plating > --- WEAPON ----------- Small Laser Small Laser > --- INVENTORY -------- Light Ion Engine Compact Wheel Improved VTOL Module Seismic Detector [Rating: 21] Favorites ----------- Power Light Nuclear Core Engine Ion Engine Power Core Light Nuclear Core Propulsion Aluminum Leg Leg Aluminum Leg Wheel Compact Wheel Flight Unit Improved VTOL Module Utility Small Storage Unit Device Improved Terrain Scanner Storage Small Storage Unit Processor Advanced Targeting Computer Protection Insulated Plating Weapon Small Laser Energy Gun Small Laser Ballistic Gun Assault Rifle Special Weapon Mining Laser Build | -11 -10 -9 -9 -8 ------- Run | Yrd Mat Mat Min Mat Slots Evolved 4 | . . 2 . 2 Power . | . . . . . Propulsion 1 | . . 1 . . Utility 3 | . . 1 . 2 Weapon . | . . . . . Parts Attached 23 | 9 5 2 . 7 Power 3 | 1 1 . . 1 Engine 2 | 1 . . . 1 Core 1 | . 1 . . . Reactor . | . . . . . Propulsion 7 | 2 3 1 . 1 Treads . | . . . . . Leg 5 | 2 3 . . . Wheel 1 | . . . . 1 Hover . | . . . . . Flight 1 | . . 1 . . Utility 7 | 2 . 1 . 4 Device 3 | 1 . . . 2 Storage 1 | 1 . . . . Processor 1 | . . 1 . . Hackware . | . . . . . Protection 2 | . . . . 2 Artifact . | . . . . . Weapon 6 | 4 1 . . 1 Energy Gun 2 | . 1 . . 1 Energy Cannon . | . . . . . Ballistic Gun 3 | 3 . . . . Ballistic Cannon . | . . . . . Launcher . | . . . . . Special Weapon 1 | 1 . . . . Impact Weapon . | . . . . . Slashing Weapon . | . . . . . Piercing Weapon . | . . . . . Special Melee Weapon . | . . . . . Unidentified Prototypes 1 | . . 1 . . Parts Lost 15 | . 2 . . 13 Power 2 | . . . . 2 Propulsion 5 | . . . . 5 Utility 3 | . . . . 3 Weapon 5 | . 2 . . 3 Highest Loss Streak 11 | . 1 . . 11 To Critical Strikes . | . . . . . Average Backups 6 | 4 7 7 8 4 Power 1 | 1 2 1 1 . Propulsion 3 | 2 4 4 5 2 Utility . | . 1 1 1 . Weapon . | . . 1 1 . Tool/Special . | . . . . . Unused Backups 4 | . 3 . . 1 Power 1 | . 1 . . . Propulsion 3 | . 2 . . 1 Utility . | . . . . . Weapon . | . . . . . Tool/Special . | . . . . . Average Slot Usage (%) 88 | . 99 87 88 75 Engine 2 | . 5 . . . Core 8 | . 8 11 11 6 Leg 23 | . 28 23 22 19 Device 12 | . 14 11 11 13 Storage 11 | . 14 11 11 8 Processor 5 | . . 8 11 8 Protection 1 | . . . . 4 Energy Gun 10 | . 9 11 11 11 Ballistic Gun 9 | . 15 11 11 2 Special Weapon 1 | . 3 . . . Peak Build Rating 21 | 9 11 15 15 21 Average Rating 12 | 6 10 14 15 14 On Entrance 10 | . 9 11 15 15 Avg Prop Armor Cover (%) . | . . . . . Naked Turns 33 | . . . . 33 Heaviest Build 21 | 15 15 14 14 21 Greatest Support 30 | 20 20 30 20 30 Greatest Overweight (x) 1 | . . . . 1 Average Overweight (x) . | . . . . . Largest Inventory Capacity 8 | 8 8 8 8 8 Average Capacity 7 | 7 8 8 8 7 Most Carried 8 | 8 8 8 8 7 Average Carried 6 | 4 7 7 8 4 Final Capacity 8 | 8 8 8 8 5 Final Carried 8 | 8 8 8 8 3 Class Distribution -------------------- 71% | Scavenger-Mutant 28% | Mutant Dominant Class ---------------- Scavenger-Mutant | -10/Materials Scavenger-Mutant | -9/Materials Scavenger-Mutant | -9/Mines Scavenger-Mutant | -8/Materials Resources | -11 -10 -9 -9 -8 ----------- Run | Yrd Mat Mat Min Mat Matter Collected 537 | 294 158 24 . 61 Remotely . | . . . . . Salvage Created 619 | 106 235 52 . 226 Parts 36 | 7 14 8 . 7 Haulers Intercepted . | . . . . . Recyclers Shooed . | . . . . . Parts Field Recycled . | . . . . . Retrieved Matter . | . . . . . Parts Self-Destructed . | . . . . . Prevented . | . . . . . Parts Restored . | . . . . . Kills | -11 -10 -9 -9 -8 ------- Run | Yrd Mat Mat Min Mat Combat Hostiles Destroyed 13 | . 6 3 . 4 Guns 13 | . 6 3 . 4 Classes Destroyed 7 | 2 3 1 . 1 Builder 1 | . . 1 . . Tunneler 1 | 1 . . . . Recycler 1 | 1 . . . . Watcher 1 | . 1 . . . Swarmer 5 | . 2 3 . . Grunt 7 | . 4 . . 3 Sentry 1 | . . . . 1 Best Kill Streak 4 | 2 4 4 . 3 Combat Bots Only 4 | . 4 2 . 3 Max Kills in Single Turn 1 | 1 1 1 . 1 Gunslinging . | . . . . . Exploded . | . . . . . Melee . | . . . . . Uniques/NPCs Destroyed . | . . . . . Combat | -11 -10 -9 -9 -8 -------- Run | Yrd Mat Mat Min Mat Hostile Shots Fired 207 | . 48 7 . 152 Missed 53 | . 12 2 . 39 Hits 154 | . 36 5 . 113 Projectile 154 | . 36 5 . 113 Critical Strikes 5 | . . . . 5 Damage Taken 2041 | . 424 41 . 1576 Core 637 | . 76 8 . 553 Absorbed by Shields . | . . . . . Core Remaining (%) 89 | 100 69 . 98 . Volleys Fired 61 | 2 23 4 . 32 Largest 2 | 2 2 2 . 2 Hottest 120 | 40 120 60 . 80 Shots Fired 113 | 4 44 8 . 57 Gun 110 | 4 41 8 . 57 Cannon . | . . . . . Launcher . | . . . . . Special 3 | . 3 . . . Kinetic 49 | 4 33 4 . 8 Thermal 64 | . 11 4 . 49 Explosive . | . . . . . Electromagnetic . | . . . . . Robot Hit Streak 23 | 3 6 9 . 23 Robot Miss Streak 2 | . 2 1 . 1 Penetration Max . | . . . . . Secondary Targets 1 | . . . . 1 Max Gunslinging Chain 1 | . . . . 1 Shots Hit Robots 88 | 3 30 6 . 49 Core Hits 40 | 3 15 4 . 18 Critical Kills . | . . . . . Critical Parts Destroyed 1 | . 1 . . . Critical Strikes 1 | . 1 . . . Destroy 1 | . 1 . . . Melee Attacks . | . . . . . Impact . | . . . . . Slashing . | . . . . . Piercing . | . . . . . Sneak Attacks . | . . . . . Combat Hostiles . | . . . . . Follow-up Attacks . | . . . . . Damage Inflicted 1109 | 41 389 97 . 582 Guns 1034 | 41 363 78 . 552 Cannons . | . . . . . Explosions . | . . . . . Melee . | . . . . . Ramming 51 | . 2 19 . 30 Kinetic 480 | 41 303 43 . 93 Thermal 578 | . 84 35 . 459 Explosive . | . . . . . Electromagnetic . | . . . . . Impact . | . . . . . Slashing . | . . . . . Piercing . | . . . . . Highest Corruption . | . . . . . Average Corruption . | . . . . . Corruption Purged . | . . . . . Corruption Blocked . | . . . . . Overload Shots . | . . . . . Overflow Damage . | . . . . . Projectiles . | . . . . . Explosions . | . . . . . Melee . | . . . . . Knockbacks . | . . . . . Impact . | . . . . . Kinetic . | . . . . . Secondary . | . . . . . Self-Inflicted Damage 8 | . . . . 8 Shots . | . . . . . Rammed 6 | . . . . 6 Targets Rammed 15 | . 1 2 2 10 Kicked 9 | . 1 2 2 4 Crushed . | . . . . . Highest Temperature 445 | . 135 . . 445 Average Temperature 128 | . 32 . . 164 Received Heat Transfer 1044 | . 216 . . 828 Effects 1 | . . . . 1 Energy Bleed 1 | . . . . 1 Siege Activations . | . . . . . Martial Activations . | . . . . . Shielding Activations . | . . . . . Robots Disrupted . | . . . . . Combat Hostiles . | . . . . . Robots Corrupted . | . . . . . Combat Hostiles . | . . . . . Parts Fried . | . . . . . Impact Corruptions . | . . . . . Robots Melted . | . . . . . Combat Hostiles . | . . . . . Parts Melted 2 | . . . . 2 Heat Transferred 1300 | . 175 75 . 1050 Parts Sabotaged . | . . . . . Parts Stolen . | . . . . . Parts Stripped . | . . . . . Power Chain Reactions . | . . . . . Alert | -11 -10 -9 -9 -8 ------- Run | Yrd Mat Mat Min Mat Maximum Alert Level . | . . . . . Low Security (%) 100 | 100 100 100 100 100 Level 1 . | . . . . . Level 2 . | . . . . . Level 3 . | . . . . . Level 4 . | . . . . . Level 5 . | . . . . . High Security . | . . . . . Max Security . | . . . . . Peak Influence 91 | 5 85 91 27 50 Initial 27 | . . . 27 . Average 17 | . 26 35 9 10 Influence Increases 479 | 10 193 101 . 175 Destroy 0b10 Robot/C 260 | . 120 60 . 80 Destroy 0b10 Robot/NC 20 | 10 5 5 . . Destroy Leader 52 | . 22 10 . 20 Successful Hack 10 | . . 10 . . Disable Machine 15 | . 15 . . . Destroy Structure 2 | . 1 1 . . Lose Combat Pursuer 120 | . 30 15 . 75 Influence Decreases 434 | 10 193 30 71 130 Entered New Map 44 | . . . 44 . Time Decay 320 | 10 173 30 27 80 Lost Part 70 | . 20 . . 50 Squads Dispatched 6 | . 1 2 . 3 Investigation 3 | . . . . 3 Extermination . | . . . . . Reinforcement 3 | . 1 2 . . Assault . | . . . . . Garrison . | . . . . . Intercept . | . . . . . Searches Triggered . | . . . . . Construction Impeded . | . . . . . Haulers Reinforced . | . . . . . Active Scanning Responses . | . . . . . Cargo Convoy Interrupts . | . . . . . Stealth | -11 -10 -9 -9 -8 --------- Run | Yrd Mat Mat Min Mat Distress Signals 5 | . 1 1 . 3 Communications Jammed . | . . . . . Distress Signals . | . . . . . Times Spotted 40 | . 13 8 . 19 Peak Tracking Total 11 | . 8 4 . 11 Tactical Retreats 5 | . 2 1 . 2 Traps | -11 -10 -9 -9 -8 ------- Run | Yrd Mat Mat Min Mat Traps Triggered . | . . . . . Indirectly . | . . . . . Trap Hack Attempts . | . . . . . Triggered . | . . . . . Disarmed . | . . . . . Reprogrammed . | . . . . . Reused . | . . . . . Traps Extracted . | . . . . . Installed . | . . . . . Triggered . | . . . . . Machines | -11 -10 -9 -9 -8 ---------- Run | Yrd Mat Mat Min Mat Machines Disabled 1 | . 1 . . . Max in Single Turn 1 | . 1 . . . Machines Repaired . | . . . . . Machines Dismantled . | . . . . . Machines Sabotaged . | . . . . . Overloaded Fab Kills . | . . . . . Hacking | -11 -10 -9 -9 -8 --------- Run | Yrd Mat Mat Min Mat Machines Accessed 6 | . 1 2 . 3 Terminals 3 | . 1 2 . . Fabricators . | . . . . . Repair Stations . | . . . . . Recycling Units 1 | . . . . 1 Scanalyzers 2 | . . . . 2 Garrison Access . | . . . . . Total Hacks 18 | . 1 4 . 13 Successful 11 | . 1 3 . 7 Failed 6 | . . 1 . 5 Catastrophic . | . . . . . Database Lockouts 1 | . . . . 1 Manual . | . . . . . Terminals 5 | . 1 4 . . Fabricators . | . . . . . Repair Stations . | . . . . . Recycling Units 5 | . . . . 5 Scanalyzers 8 | . . . . 8 Garrison Access . | . . . . . Terminal Hacks 4 | . 1 3 . . Robot Analysis 1 | . 1 . . . Emergency Access Points 1 | . . 1 . . Reinforcement Status 1 | . . 1 . . Zone Layout 1 | . . 1 . . Fabricator Hacks . | . . . . . Repair Station Hacks . | . . . . . Recycling Unit Hacks 4 | . . . . 4 Recycle Component 1 | . . . . 1 Process 2 | . . . . 2 Retrieve Components 1 | . . . . 1 Scanalyzer 3 | . . . . 3 Insert Component 1 | . . . . 1 Analyze 1 | . . . . 1 Retrieve Study 1 | . . . . 1 Garrison Access Hacks . | . . . . . Unauthorized Hacks . | . . . . . Terminals . | . . . . . Fabricators . | . . . . . Repair Stations . | . . . . . Recycling Units . | . . . . . Scanalyzers . | . . . . . Garrison Access . | . . . . . Data Cores Recovered . | . . . . . Used . | . . . . . Hacking Detections 3 | . . . . 3 Full Trace Events 3 | . . . . 3 Feedback Events . | . . . . . Feedback Blocked . | . . . . . Robot Schematics Acquired . | . . . . . Robots Built . | . . . . . Authchips . | . . . . . Time . | . . . . . Total Robot Build Rating . | . . . . . Part Schematics Acquired 1 | . . . . 1 Parts Built . | . . . . . Authchips . | . . . . . Time . | . . . . . Total Part Build Rating . | . . . . . Part Studies Acquired 1 | . . . . 1 Parts Repaired . | . . . . . Time . | . . . . . Parts Recycled 1 | . . . . 1 Recycled Matter 88 | . . . . 88 Retrieved Matter . | . . . . . Retrieved Components . | . . . . . Parts Scanalyzed 1 | . . . . 1 Part Schematics Acquired 1 | . . . . 1 Parts Damaged . | . . . . . Bothacking | -11 -10 -9 -9 -8 ------------ Run | Yrd Mat Mat Min Mat Used RIF Installer . | . . . . . Robots Hacked . | . . . . . Non-combat . | . . . . . Combat . | . . . . . Robot Hacks Applied . | . . . . . Relay Couplers Released . | . . . . . Fabnet Peak Effective % . | . . . . . Robots Rewired . | . . . . . Allies Hacked . | . . . . . Hacks Repelled . | . . . . . Allies | -11 -10 -9 -9 -8 -------- Run | Yrd Mat Mat Min Mat Total Allies . | . . . . . Largest Group . | . . . . . Highest-Rated Group . | . . . . . Highest-Rated Ally . | . . . . . Total Orders . | . . . . . Ally Attacks . | . . . . . Total Damage . | . . . . . Kills . | . . . . . Allies Corrupted . | . . . . . Allies Melted . | . . . . . Intel | -11 -10 -9 -9 -8 ------- Run | Yrd Mat Mat Min Mat Active Infowar (turns) 1026 | 40 442 132 107 305 Sensors 62 | . . . . 62 Terrain 1026 | 40 442 132 107 305 Seismic 199 | . . . . 199 Robot Analysis Total 1 | . 1 . . . Derelict Logs Recovered . | . . . . . Drone Launches . | . . . . . Drone Recoveries . | . . . . . Exploration | -11 -10 -9 -9 -8 ------------- Run | Yrd Mat Mat Min Mat Turns Passed 1202 | 134 442 132 107 387 Spaces Moved 794 | 91 290 94 88 231 Core 45 | 5 . . . 40 Treads . | . . . . . Legs 725 | 86 290 94 88 167 Wheels 24 | . . . . 24 Hover . | . . . . . Flight . | . . . . . Fastest Speed 50 | 50 120 120 120 50 Average Speed 116 | 116 120 120 120 108 Slowest Speed 120 | 120 120 120 120 120 Overloaded Moves . | . . . . . Propulsion Burnouts . | . . . . . Robots Hopped . | . . . . . Potential Cave-ins . | . . . . . Cave-ins Triggered . | . . . . . Exploration Rate (%) 19 | 5 39 11 18 24 Regions Visited 4 Branch Regions 1 Pre-discovered Areas . | . . . . . Known Exits Taken . | . . . . . Unknown Exits Taken 4 | 1 1 1 1 . Scrap Searched . | . . . . . Spaces Dug . | . . . . . Terrain Destroyed 1 | . 1 . . . Melee . | . . . . . Projectile 1 | . 1 . . . AOE . | . . . . . Terrain Rammed . | . . . . . Walls Destroyed . | . . . . . Machines Disabled . | . . . . . Actions | -11 -10 -9 -9 -8 --------- Run | Yrd Mat Mat Min Mat Total 948 | 112 335 105 89 307 Wait 31 | . 8 . . 23 Move 790 | 90 289 93 87 231 Hop . | . . . . . Pick Up 12 | 10 2 . . . Fast Attach 13 | 6 2 2 . 3 Attach 9 | 1 1 1 . 6 Detach 5 | . 1 2 . 2 Swap 5 | 2 3 . . . Drop 7 | 1 5 1 . . Fire 61 | 2 23 4 . 32 Melee . | . . . . . Ram 6 | . . . . 6 Kick 9 | . 1 2 2 4 Crush . | . . . . . Escape Stasis . | . . . . . Rewire . | . . . . . Trap . | . . . . . Miscellaneous . | . . . . . Route ------- -11/Scrapyard -10/Materials -9/Materials -9/Mines -8/Materials History --------- Turn | Location | Event 16 | -11/Scrapyard | Discovered new exit (range 15) 135 | -11/Scrapyard | Entered Materials 339 | -10/Materials | Discovered new exit (range 16) 572 | -10/Materials | Build established: Scavenger-Mutant 577 | -10/Materials | Entered another Materials area 577 | -9/Materials | Evolved 2 slots: Propulsion x1, Utility x1 659 | -9/Materials | Discovered new exit (range 16) 709 | -9/Materials | Entered Mines 761 | -9/Mines | Met a Derelict bent on vengeance 805 | -9/Mines | Discovered new exit (range 9) 816 | -9/Mines | Entered Materials 816 | -8/Materials | Evolved 2 slots: Utility x2 1047 | -8/Materials | Central database locked down 1136 | -8/Materials | Core integrity fell below 50% 1170 | -8/Materials | Released all parts (2) 1176 | -8/Materials | Core integrity fell below 20% 1187 | -8/Materials | Lost 11 parts (2p4n3u2w) 1203 | -8/Materials | Destroyed by S-10 Pest with Light Assault Rifle Last Messages --------------- Aluminum Leg destroyed. Slammed into G-47 Trooper. Insulated Plating destroyed. Hrd. Light Armor Plating destroyed. Sml. Laser destroyed. Overheating: Energy bleed (-16). R-06 Scavenger collects Lgt. Treads. Com. Wheel destroyed. R-06 Scavenger collects Imp. Ion Engine. Slammed into S-10 Pest. S-10 Pest destroyed. Slammed into M-13 Machinist. Adv. Targeting Computer broken. Destabilizing: Short circuit. Released Broken Adv. Targeting Computer. Released Sml. Storage Unit. Slammed into M-13 Machinist. Slammed into U-05 Engineer. W-25 Informer sends out distress signal. K-01 Serf collects debris. Map ----- +----------------------------------------------------+ | ????????????????????????????????????????????? | | ????????????????????????????????????????????? | | ????????????????????????????????????????????? | | ????????????????????????????????????????????? | | ????????????????????????????????????????????? | | ????????????????????????????????????????????? | | ????????????????????????????????????????????? | | ????????????????????????????????????????????? | | ????????????????????????????????????????????? | | ????????????????????????????????????????????? | | ????????????????????????????????????????????? | | ????????????????????????????????????????????? | | ????????????????????????????????????????????? | | ??????????????????????? ????????????????????? | | ????????????????????????????#???????????????? | | ????????????????????????????????????????????? | | ????????????????????? ??????????????????????? | | ????????????????????????????????????????????? | | ???????????????????????????#????????????????? | | ?????????########???????########????????????? | | ?????????# ! #???????# #????????????? | | ?????????# #???????# #????????????? | | ?????????# == #???????# #????????????? | | ?????????#* == #???????# #?????#??????? | | ?????????# == #???????# s #????????????? | | ?????????# #???????#@sg #????????????? | | ?????????####+#############/####????????????? | | ########## #???????#????? | | #????????????? | | #????????????? | | #######+###########????????????? | | ######### ## #??????????#????????? | | ??# # % ## """ "" #??????#???#?#??????? | | ??# %! /% ## """ """##??????????????????? | | ??# """# ## """ S"#???#???#???????#???? | | ??# """# ## """#??#????????????????? | | ??# ="""# ## """##????#?????????#???? | | ??#!%%% # ## #?????#??#?#???##???? | | ??###/#### ## #?????#?##????#?????? | | ??# # #########+##????????????????#??? | | #?#!! +% ######### ###?#????????????????? | | ??#!! # # # #??????????#?#???????? | | ?## !# # # ############?????????? | | ?#%! # # # ## % #???????#?# | | ### ! # # # ## " "%""" #?????????? | | ??# # # # # """%""" #?????????? | | ??# """ !# [%# !# + """ """ #?#??????#? | | ??# "R # / # # """ """ #?????????? | | #?# """ # # # # """ """ #??#??????? | | ??# # # # # #???#?##??? | +----------------------------------------------------+ Best States ------------- Heat Dissipation 31 Energy Generation 15 Energy Capacity 250 Matter Stores 300 Matter Capacity 300 Sight Range 16 Robot Scan Range 15 Terrain Scan Range 16 Terrain Scan Density 10 Armor Coverage 300 Resistance: EM 15 Evasion (%) 55 Targeting Accuracy 8 Item Schematics ----------------- Imp. VTOL Module | -8/Materials | Scanalyzed Robot Schematics ------------------ None Fabricated ------------ Nothing Repaired ---------- Nothing Studied --------- Lgt. Nuclear Core | -8/Materials | Hacked Alien Tech Used ----------------- None Achievements -------------- Party Time Challenges ------------ None Game ------ Seed ReinforcedMatterNanovents Manual? 0 Play Time 00:29:23 Cumulative 13.0 hours Start 2025.11.08 @ 23:02:38 End 2025.11.09 @ 21:29:52 Sessions 4 Manual Loads 0 Difficulty Rogue Special Mode None Game No. 15 Rogue 15 Adventurer 0 Explorer 0 Win Type - Total 0 Types 0/0/0/0/0/0/0/0/0/0 Lore% 6 Gallery% 13 Achievement% 10 Wizard Run 0 Options --------- Layout 1 ASCII 0 Keyboard 0 Movement Arrows Keybinds 0 Fullscreen 1 Font 24/Smallcaps Map View 50x35 Zoom Use 0% Tactical HUD 0 Map Filters NONE Filters NONE Steam 1 RUN: 1124ac10-d438-449b-8f97-3fbadf7a59ac